fUSD/lending_fUSD_20250826
["ID","MTS","AMOUNT","RATE_DAILY","PERIOD"]
[381377391,1756169440644,-3139.81875585,0.0001834,2]
[381377393,1756169440653,-539.68,0.00018356,2]
[381377395,1756169440664,-770.80470096,0.00018358,2]
[381377397,1756169440673,-15209.5269807,0.00018362,2]
[381377399,1756169440682,-513.3852865,0.00018362,2]
[381377401,1756169440691,-5772.284343,0.00018362,2]
[381377403,1756169440700,-3255.99204981,0.00018395,2]
[381377405,1756169440710,-800.0,0.000184,6]
[381377407,1756169440719,-200.0,0.00018406,2]
[381377409,1756169440729,-200.0,0.00018407,2]
[381377411,1756169440739,-214.56124591,0.00018444,2]
[381377413,1756169440748,-2383.61317733,0.0001845,2]
[381377415,1756169440758,-418.82723487,0.00018453,2]
[381377417,1756169440767,-251.01296961,0.00018454,2]
[381377419,1756169440777,-752.7832701,0.00018454,2]
[381377421,1756169440786,-230.23717353,0.00018455,2]
[381377423,1756169440795,-185.39373935,0.00018455,2]
[381377425,1756169440805,-201.13344233,0.00018455,2]
[381377427,1756169440814,-500.0,0.00018455,2]
[381377429,1756169440823,-6095.05957517,0.00018455,2]
[381377431,1756169440833,-840.2012,0.00018455,2]
[381377433,1756169440843,-2189.9014,0.00018455,2]
[381377435,1756169440853,-2756.89476906,0.00018455,2]
[381377437,1756169440863,-5000.0,0.00018456,2]
[381377439,1756169440873,-300.0,0.00018492,2]
[381377441,1756169440883,-1200.0,0.000185,6]
[381377443,1756169440892,-418.82723484,0.00018502,2]
[381377445,1756169440901,-2756.89476906,0.00018504,2]
[381377447,1756169440914,-151.0,0.00018537,2]
[381377449,1756169440923,-172.33107895,0.00018543,2]
[381377451,1756169440932,-62.29042637,0.00018551,2]
[381377453,1756169440944,-356.53680847,0.00018551,2]
[381377455,1756169440954,-700.4977092,0.00018553,2]
[381377457,1756169440965,-1897.74363316,0.00018553,2]
[381377550,1756169441869,-158.6534267,0.00018553,2]
[381377551,1756169441878,-400.0,0.00018553,2]
[381377552,1756169441887,-400.0,0.00018553,2]
[381377553,1756169441896,-400.0,0.00018553,2]
[381377554,1756169441906,-971.51,0.00018553,2]
[381377555,1756169441916,-1410.04,0.00018553,2]
[381377556,1756169441925,-400.0,0.00018553,2]
[381377557,1756169441934,-400.0,0.00018553,2]
[381377558,1756169441944,-400.0,0.00018553,2]
[381377559,1756169441953,-400.0,0.00018553,2]
[381377560,1756169441962,-400.0,0.00018553,2]
[381377561,1756169441971,-1146.73,0.00018553,2]
[381377562,1756169441981,-400.0,0.00018553,2]
[381377563,1756169441991,-659.22,0.00018553,2]
[381377564,1756169442000,-400.0,0.00018553,2]
[381377565,1756169442010,-2267.77,0.00018553,2]
[381377567,1756169442019,-400.0,0.00018553,2]
[381377569,1756169442028,-400.0,0.00018553,2]
[381377571,1756169442037,-400.0,0.00018553,2]
[381377573,1756169442046,-744.39,0.00018553,2]
[381377575,1756169442056,-400.0,0.00018553,2]
[381377577,1756169442066,-400.0,0.00018553,2]
[381377579,1756169442075,-1053.0,0.00018553,2]
[381377581,1756169442085,-400.0,0.00018553,2]
[381377583,1756169442094,-1193.42,0.00018553,2]
[381377585,1756169442109,-400.0,0.00018553,2]
[381377587,1756169442118,-856.39,0.00018553,2]
[381377589,1756169442128,-2986.81,0.00018553,2]
[381377591,1756169442137,-3180.13,0.00018553,2]
[381377593,1756169442146,-155.209,0.00018553,2]
[381377595,1756169442156,-916.86,0.00018553,2]
[381377597,1756169442166,-1099.94,0.00018553,2]
[381377599,1756169442175,-846.57,0.00018553,2]
[381377602,1756169442185,-400.0,0.00018553,2]
[381377603,1756169442195,-400.0,0.00018553,2]
[381377605,1756169442204,-400.0,0.00018553,2]
[381377607,1756169442213,-809.7,0.00018553,2]
[381377609,1756169442222,-598.02,0.00018553,2]
[381377611,1756169442231,-579.3,0.00018553,2]
[381377613,1756169442240,-400.0,0.00018553,2]
[381377615,1756169442249,-400.0,0.00018553,2]
[381377617,1756169442258,-400.0,0.00018553,2]
[381377619,1756169442267,-778.11,0.00018553,2]
[381377621,1756169442277,-1258.01,0.00018553,2]
[381377623,1756169442288,-400.0,0.00018553,2]
[381377625,1756169442297,-1602.26,0.00018553,2]
[381377627,1756169442307,-511.36,0.00018553,2]
[381377629,1756169442316,-400.0,0.00018553,2]
[381377631,1756169442327,-400.0,0.00018553,2]
[381377633,1756169442336,-400.0,0.00018553,2]
[381377635,1756169442346,-1392.76,0.00018553,2]
[381377637,1756169442357,-15180.10548709,0.00018553,9]
[381377838,1756169444399,-152.8674286,0.00016999,2]
[381377840,1756169444419,-365.65723145,0.000183,6]
[381377847,1756169444491,-34.34276855,0.000183,6]
[381377849,1756169444500,-150.0,0.0001851,3]
[381377851,1756169444511,-400.0,0.00018553,2]
[381377853,1756169444521,-400.0,0.00018553,2]
[381377855,1756169444530,-4487.65723145,0.00018553,9]
[381377863,1756169444603,-444.03367594,0.00018553,9]
[381377868,1756169444633,-695.95321787,0.00018553,9]
[381377870,1756169444645,-479.8475744,0.00018553,9]
[381377872,1756169444656,-4742.11496957,0.00018553,9]
[381377876,1756169444680,-402.12143193,0.00018553,9]
[381377880,1756169444715,-400.0,0.00018553,2]
[381377882,1756169444724,-490.57598,0.00018553,9]
[381377885,1756169444735,-1006.68,0.00018553,9]
[381377887,1756169444747,-930.36,0.00018553,9]
[381377889,1756169444758,-1073.5,0.00018553,9]
[381377891,1756169444769,-546.38440035,0.00018553,9]
[381377893,1756169444780,-1200.69662182,0.00018553,9]
[381377896,1756169444792,-25346.55372584,0.00018553,9]
[381377899,1756169444817,-1177.50064858,0.00018553,9]
[381377901,1756169444828,-3255.63183747,0.00018553,9]
[381377965,1756169446253,-150.0,0.00017499,3]
[381377966,1756169446264,-800.0,0.000184,6]
[381377967,1756169446275,-650.0,0.00018553,2]
[381377968,1756169446360,-374.78,0.00018553,2]
[381377969,1756169446370,-10553.22,0.00018553,9]
[381377970,1756169446521,-150.0,0.00017999,3]
[381377971,1756169446530,-577278.28359588,0.00018553,9]
[381377972,1756169446542,-2177.17499998,0.00018553,9]
[381378125,1756169448490,155.0,0.0002609,120]
[381378176,1756169448989,155.0,0.0002608,120]
[381378201,1756169449446,155.0,0.0002607,120]
[381378202,1756169449876,155.0,0.0002609,120]
[381378203,1756169450439,155.0,0.0002608,120]
[381378204,1756169450779,155.0,0.0002607,120]
[381378205,1756169451341,155.0,0.0002609,120]
[381378206,1756169451796,155.0,0.0002608,120]
[381378207,1756169453222,155.0,0.0002609,120]
[381378208,1756169453452,156.04,0.0002608,120]
[381378213,1756169785753,186.34,0.0002566,120]
[381378214,1756170008666,172.486176,7.945e-05,2]
[381378217,1756170144397,10000.0,0.000125,10]
[381378218,1756170219731,300.0,0.00027,120]
[381378219,1756170261334,300.0,0.00028767,120]
[381378220,1756170261754,300.0,0.00028767,120]
[381378221,1756170311986,209.71417088,0.000287,120]
[381378250,1756170632339,-525.93,0.00013699,2]
[381378251,1756170632349,-66.69998414,0.00014041,2]
[381378252,1756170632362,-85.30001586,0.00014041,2]
[381378253,1756170632371,-152.0,0.00015068,2]
[381378254,1756170632381,-152.0,0.00015068,2]
[381378255,1756170632392,-152.0,0.00015068,2]
[381378256,1756170632401,-172.80038975,0.00015799,2]
[381378257,1756170632410,-376.67189405,0.00015819,2]
[381378258,1756170632443,-745.91322995,0.00015819,2]
[381378259,1756170632453,-500.0,0.00015899,2]
[381378260,1756170632462,-274.0,0.00016479,2]
[381378261,1756170632471,-150.0,0.00016479,2]
[381378262,1756170632480,-200.0,0.00016494,2]
[381378263,1756170632491,-675.15928909,0.00016497,2]
[381378264,1756170632501,-1268.37,0.00016503,2]
[381378265,1756170632510,-1200.0,0.00016506,2]
[381378266,1756170632520,-12615.91,0.00016507,2]
[381378267,1756170632529,-1000.0,0.00016519,2]
[381378268,1756170632540,-466.57,0.00016564,2]
[381378269,1756170632549,-1603.67,0.00016619,2]
[381378270,1756170632560,-1500.0,0.00016619,2]
[381378271,1756170632570,-1852.42,0.00016619,2]
[381378272,1756170632582,-160.0,0.00016619,7]
[381378273,1756170632592,-2751.0,0.00016679,2]
[381378274,1756170632603,-500.0,0.00016834,2]
[381378275,1756170632616,-500.0,0.00016834,2]
[381378276,1756170632626,-500.0,0.00016834,2]
[381378277,1756170632637,-500.0,0.00016834,2]
[381378278,1756170632648,-500.0,0.00016834,2]
[381378279,1756170632658,-500.0,0.00016834,2]
[381378280,1756170632667,-348.04508398,0.00016834,2]
[381378281,1756170632681,-500.0,0.00016834,2]
[381378282,1756170632691,-151.0,0.00016834,2]
[381378283,1756170632700,-151.0,0.00016834,2]
[381378284,1756170632709,-151.0,0.00016834,2]
[381378285,1756170632721,-151.0,0.00016834,2]
[381378286,1756170632733,-151.0,0.00016834,2]
[381378287,1756170632742,-151.0,0.00016834,2]
[381378288,1756170632751,-151.0,0.00016834,2]
[381378289,1756170632765,-151.0,0.00016834,2]
[381378290,1756170632775,-151.0,0.00016834,2]
[381378291,1756170632787,-151.0,0.00016834,2]
[381378292,1756170632797,-151.0,0.00016834,2]
[381378293,1756170632806,-200.0,0.00016834,2]
[381378294,1756170632816,-151.0,0.00016834,2]
[381378295,1756170632826,-151.0,0.00016834,2]
[381378296,1756170632836,-172.80038974,0.00016839,2]
[381378297,1756170632846,-610.0,0.00016841,2]
[381378298,1756170632855,-550.0,0.00016843,2]
[381378299,1756170632865,-871.902753,0.00016843,2]
[381378300,1756170632877,-14093.84,0.00016844,2]
[381378301,1756170632888,-250.0,0.00016844,2]
[381378302,1756170632899,-150.0,0.0001685,2]
[381378303,1756170632911,-500.0,0.00016889,2]
[381378304,1756170632923,-512.84,0.00016914,2]
[381378305,1756170632934,-512.84,0.0001692,2]
[381378306,1756170632944,-1000.0,0.00016925,2]
[381378307,1756170632953,-512.84,0.00016927,2]
[381378308,1756170632964,-512.84,0.00016933,2]
[381378309,1756170632973,-512.84,0.00016939,2]
[381378310,1756170632984,-500.0,0.00016944,2]
[381378311,1756170632995,-512.84,0.00016945,2]
[381378312,1756170633005,-512.84,0.00016951,2]
[381378313,1756170633014,-512.84,0.00016958,2]
[381378314,1756170633024,-666.0,0.00016958,3]
[381378315,1756170633034,-512.84,0.00016964,2]
[381378316,1756170633044,-512.84,0.0001697,2]
[381378317,1756170633054,-1000.0,0.00016974,2]
[381378318,1756170633064,-512.84,0.00016976,2]
[381378319,1756170633074,-512.84,0.00016982,2]
[381378320,1756170633083,-512.84,0.00016989,2]
[381378321,1756170633093,-512.84,0.00016995,2]
[381378322,1756170633104,-500.0,0.00016999,2]
[381378323,1756170633114,-512.84,0.00017001,2]
[381378324,1756170633124,-512.84,0.00017007,2]
[381378325,1756170633135,-512.84,0.00017014,2]
[381378326,1756170633145,-512.84,0.0001702,2]
[381378327,1756170633156,-512.84,0.00017026,2]
[381378328,1756170633168,-512.84,0.00017032,2]
[381378329,1756170633180,-500.0,0.00017054,2]
[381378330,1756170633191,-177.47,0.00017063,2]
[381378331,1756170633201,-150.0,0.00017088,2]
[381378332,1756170633211,-150.0,0.00017088,2]
[381378333,1756170633221,-150.0,0.00017088,2]
[381378334,1756170633232,-150.0,0.00017088,2]
[381378335,1756170633242,-150.0,0.00017088,2]
[381378336,1756170633253,-150.0,0.00017088,2]
[381378337,1756170633264,-150.0,0.00017088,2]
[381378338,1756170633274,-150.0,0.00017088,2]
[381378339,1756170633284,-150.0,0.00017088,2]
[381378340,1756170633293,-150.0,0.00017088,2]
[381378341,1756170633303,-150.0,0.00017088,2]
[381378342,1756170633313,-150.0,0.00017088,2]
[381378343,1756170633323,-150.0,0.00017107,2]
[381378344,1756170633332,-186.34,0.00017107,2]
[381378345,1756170633342,-500.0,0.00017109,2]
[381378346,1756170633352,-166.66,0.00017116,2]
[381378347,1756170633363,-500.0,0.00017164,2]
[381378348,1756170633375,-500.0,0.00017219,2]
[381378349,1756170633385,-150.0,0.00017299,2]
[381378350,1756170633394,-151.0,0.00017382,2]
[381378351,1756170633404,-150.0,0.00017404,2]
[381378352,1756170633414,-150.0,0.00017404,2]
[381378353,1756170633424,-150.0,0.00017467,2]
[381378354,1756170633434,-150.0,0.0001751,2]
[381378355,1756170633443,-150.0,0.00017562,2]
[381378356,1756170633453,-844.49479001,0.00017618,2]
[381378357,1756170633463,-212.1464853,0.00017618,2]
[381378358,1756170633472,-458.69889469,0.00017618,2]
[381378359,1756170633482,-160.0,0.0001762,2]
[381378360,1756170633491,-339.81,0.00017625,2]
[381378361,1756170633501,-200.0,0.00017631,2]
[381378362,1756170633511,-175.3,0.00017655,2]
[381378363,1756170633522,-166.66,0.00017681,2]
[381378364,1756170633531,-150.0,0.00017721,2]
[381378365,1756170633541,-150.0,0.00017721,2]
[381378366,1756170633552,-150.0,0.00017721,2]
[381378367,1756170633562,-150.0,0.00017721,2]
[381378368,1756170633572,-150.0,0.00017721,2]
[381378369,1756170633581,-539.0,0.00017753,2]
[381378370,1756170633591,-3374.0,0.00017798,2]
[381378371,1756170633605,-925.0,0.00017798,2]
[381378372,1756170633620,-1657.0,0.00017798,2]
[381378373,1756170633630,-1298.0,0.00017798,2]
[381378374,1756170633640,-599.0,0.00017798,2]
[381378375,1756170633651,-566.0,0.00017798,2]
[381378376,1756170633660,-718.0,0.00017798,2]
[381378377,1756170633670,-21100.0,0.00017798,2]
[381378378,1756170633681,-4154.0,0.00017798,2]
[381378379,1756170633691,-6145.0,0.00017798,2]
[381378380,1756170633701,-389.0,0.000178,2]
[381378381,1756170633711,-539.68,0.00017808,2]
[381378382,1756170633721,-150.0,0.00017847,2]
[381378383,1756170633731,-322.6107,0.00017909,2]
[381378384,1756170633740,-151.77329165,0.00017909,2]
[381378385,1756170633749,-267.46074303,0.00017909,2]
[381378386,1756170633759,-151.0,0.00017909,2]
[381378387,1756170633769,-695.39793187,0.00017909,2]
[381378388,1756170633778,-151.0,0.0001793,2]
[381378389,1756170633788,-150.0,0.00017932,2]
[381378390,1756170633799,-200.0,0.00017955,2]
[381378391,1756170633809,-150.0,0.00017973,2]
[381378392,1756170633820,-173.7,0.00017973,2]
[381378393,1756170633838,-168.0,0.00017993,2]
[381378394,1756170633848,-2000.0,0.00018,2]
[381378395,1756170633857,-150.0,0.00018037,2]
[381378396,1756170633867,-150.0,0.00018037,2]
[381378397,1756170633878,-150.0,0.00018037,2]
[381378398,1756170633887,-150.0,0.00018037,2]
[381378399,1756170633897,-150.0,0.00018037,2]
[381378400,1756170633907,-150.0,0.00018037,2]
[381378401,1756170633916,-300.0,0.00018082,2]
[381378402,1756170633929,-310.03,0.00018095,2]
[381378403,1756170633938,-539.68,0.00018095,2]
[381378404,1756170633949,-168.0,0.00018105,2]
[381378405,1756170633959,-150.0,0.00018142,2]
[381378406,1756170633969,-173.76,0.00018164,2]
[381378407,1756170633979,-300.0,0.00018215,2]
[381378408,1756170633988,-881.04435215,0.00018223,2]
[381378409,1756170633998,-150.0,0.00018227,2]
[381378410,1756170634008,-166.66,0.00018246,2]
[381378411,1756170634018,-3022.89742902,0.0001826,2]
[381378412,1756170634027,-168.0,0.00018263,2]
[381378413,1756170634036,-600.0,0.000183,6]
[381378414,1756170634046,-2500.0,0.00018353,2]
[381378415,1756170634056,-709.63573083,0.00018353,2]
[381378416,1756170634066,-332.84359101,0.00018353,2]
[381378417,1756170634076,-150.0,0.00018353,2]
[381378418,1756170634085,-150.0,0.00018353,2]
[381378419,1756170634095,-150.0,0.00018353,2]
[381378420,1756170634105,-150.0,0.00018353,2]
[381378421,1756170634115,-150.0,0.00018353,2]
[381378422,1756170634126,-59532.78965208,0.00018354,2]
[381378423,1756170634136,-151.0,0.00018354,2]
[381378424,1756170634146,-3249.41531393,0.00018354,2]
[381378425,1756170634161,-500.0,0.00018354,2]
[381378426,1756170634182,-556.3325968,0.00018354,2]
[381378427,1756170634198,-612.01487883,0.00018358,2]
[381378428,1756170634208,-3233.4544611,0.00018362,2]
[381378429,1756170634219,-17535.57274873,0.0001837,2]
[381378430,1756170634229,-1200.0,0.000184,6]
[381378431,1756170634240,-200.0,0.00018405,2]
[381378432,1756170634250,-2031.0,0.00018414,2]
[381378433,1756170634259,-3249.41531384,0.00018414,2]
[381378434,1756170634269,-501.63,0.00018443,2]
[381378435,1756170634279,-489.85,0.00018452,2]
[381378436,1756170634289,-5141.76,0.00018452,2]
[381378437,1756170634300,-400.0,0.00018452,2]
[381378438,1756170634310,-765.11,0.00018452,2]
[381378439,1756170634320,-733.23,0.00018452,2]
[381378440,1756170634329,-400.0,0.00018452,2]
[381378441,1756170634340,-400.0,0.00018452,2]
[381378442,1756170634350,-278.52053906,0.00018452,2]
[381378443,1756170634360,-400.0,0.00018452,2]
[381378444,1756170634370,-400.0,0.00018452,2]
[381378445,1756170634379,-400.0,0.00018452,2]
[381378446,1756170634390,-400.0,0.00018452,2]
[381378447,1756170634400,-1425.71,0.00018452,2]
[381378448,1756170634409,-400.0,0.00018452,2]
[381378449,1756170634419,-2621.82,0.00018452,2]
[381378450,1756170634430,-400.0,0.00018452,2]
[381378451,1756170634440,-400.0,0.00018452,2]
[381378452,1756170634450,-670.4,0.00018452,2]
[381378453,1756170634460,-400.0,0.00018452,2]
[381378454,1756170634471,-1715.19,0.00018452,2]
[381378455,1756170634480,-1360.47,0.00018452,2]
[381378456,1756170634490,-400.0,0.00018452,2]
[381378457,1756170634499,-400.0,0.00018452,2]
[381378458,1756170634509,-2380.19,0.00018452,2]
[381378459,1756170634518,-842.79,0.00018452,2]
[381378460,1756170634528,-775.97,0.00018452,2]
[381378461,1756170634538,-799.31,0.00018452,2]
[381378462,1756170634548,-500.0,0.00018452,2]
[381378463,1756170634557,-745.69,0.00018452,2]
[381378464,1756170634567,-400.0,0.00018452,2]
[381378465,1756170634577,-400.0,0.00018452,2]
[381378466,1756170634587,-400.0,0.00018452,2]
[381378467,1756170634597,-400.0,0.00018452,2]
[381378468,1756170634609,-890.61,0.00018452,2]
[381378469,1756170634619,-400.0,0.00018452,2]
[381378470,1756170634629,-884.24,0.00018452,2]
[381378471,1756170634639,-573.1,0.00018452,2]
[381378472,1756170634650,-400.0,0.00018452,2]
[381378473,1756170634659,-400.0,0.00018452,2]
[381378474,1756170634669,-878.65,0.00018452,2]
[381378475,1756170634681,-5000.0,0.00018452,2]
[381378476,1756170634691,-151.0,0.00018453,2]
[381378477,1756170634700,-151.0,0.00018453,2]
[381378478,1756170634709,-400.0,0.00018453,2]
[381378479,1756170634719,-724.49,0.00018453,2]
[381378480,1756170634728,-400.0,0.00018453,2]
[381378481,1756170634737,-400.0,0.00018453,2]
[381378482,1756170634747,-400.0,0.00018453,2]
[381378483,1756170634757,-520.46,0.00018453,2]
[381378484,1756170634767,-588.35,0.00018453,2]
[381378485,1756170634776,-859.72,0.00018453,2]
[381378486,1756170634786,-1234.17,0.00018453,2]
[381378487,1756170634795,-400.0,0.00018453,2]
[381378488,1756170634808,-400.0,0.00018453,2]
[381378489,1756170634823,-400.0,0.00018453,2]
[381378490,1756170634843,-422.93,0.00018453,2]
[381378491,1756170634854,-400.0,0.00018453,2]
[381378492,1756170634865,-400.0,0.00018453,2]
[381378493,1756170634876,-400.0,0.00018453,2]
[381378494,1756170634886,-400.0,0.00018453,2]
[381378495,1756170634896,-500.0,0.00018453,2]
[381378496,1756170634906,-400.0,0.00018453,2]
[381378497,1756170634916,-400.0,0.00018453,2]
[381378498,1756170634927,-400.0,0.00018453,2]
[381378499,1756170634937,-400.0,0.00018453,2]
[381378500,1756170634951,-400.0,0.00018453,2]
[381378501,1756170634961,-400.0,0.00018453,2]
[381378502,1756170634973,-1026.65,0.00018453,2]
[381378503,1756170634983,-400.0,0.00018453,2]
[381378504,1756170634992,-1110.68,0.00018453,2]
[381378505,1756170635002,-1766.35,0.00018453,2]
[381378506,1756170635011,-400.0,0.00018453,2]
[381378507,1756170635021,-485.14,0.00018453,2]
[381378508,1756170635031,-400.0,0.00018453,2]
[381378509,1756170635041,-400.0,0.00018453,2]
[381378510,1756170635050,-594.64,0.00018453,2]
[381378511,1756170635060,-473.53,0.00018453,2]
[381378512,1756170635070,-400.0,0.00018453,2]
[381378513,1756170635079,-400.0,0.00018453,2]
[381378514,1756170635089,-500.0,0.00018453,2]
[381378515,1756170635098,-400.0,0.00018453,2]
[381378516,1756170635108,-400.0,0.00018453,2]
[381378517,1756170635117,-1226.14,0.00018453,2]
[381378518,1756170635127,-716.3,0.00018453,2]
[381378519,1756170635137,-400.0,0.00018453,2]
[381378520,1756170635146,-400.0,0.00018453,2]
[381378521,1756170635156,-400.0,0.00018453,2]
[381378522,1756170635166,-400.0,0.00018453,2]
[381378523,1756170635184,-400.0,0.00018453,2]
[381378524,1756170635715,-400.0,0.00018453,2]
[381378525,1756170635733,-1118.81,0.00018453,2]
[381378526,1756170635743,-400.0,0.00018453,2]
[381378527,1756170635752,-1503.73,0.00018453,2]
[381378528,1756170635762,-400.0,0.00018453,2]
[381378529,1756170635771,-531.25,0.00018453,2]
[381378530,1756170635780,-400.0,0.00018453,2]
[381378531,1756170635790,-668.96,0.00018453,2]
[381378532,1756170635799,-903.19,0.00018453,2]
[381378533,1756170635808,-400.0,0.00018453,2]
[381378534,1756170635817,-448.44,0.00018453,2]
[381378535,1756170635826,-400.0,0.00018453,2]
[381378536,1756170635836,-1374.32,0.00018453,2]
[381378537,1756170635845,-904.92,0.00018453,2]
[381378538,1756170635855,-400.0,0.00018453,2]
[381378539,1756170635865,-400.0,0.00018453,2]
[381378540,1756170635875,-524.6,0.00018453,2]
[381378541,1756170635884,-400.0,0.00018453,2]
[381378542,1756170635894,-1326.25,0.00018453,2]
[381378543,1756170635904,-400.0,0.00018453,2]
[381378544,1756170635913,-400.0,0.00018453,2]
[381378545,1756170635923,-400.0,0.00018453,2]
[381378546,1756170635935,-400.0,0.00018453,2]
[381378547,1756170635945,-227.57931153,0.00018453,2]
[381378548,1756170635954,-400.0,0.00018453,2]
[381378549,1756170635964,-400.0,0.00018453,2]
[381378550,1756170635974,-1279.16,0.00018453,2]
[381378551,1756170635984,-400.0,0.00018453,2]
[381378552,1756170635993,-1613.85,0.00018453,2]
[381378553,1756170636003,-400.0,0.00018453,2]
[381378554,1756170636012,-868.91,0.00018453,2]
[381378555,1756170636022,-454.93170902,0.00018453,2]
[381378556,1756170636031,-400.0,0.00018453,2]
[381378557,1756170636041,-1649.33,0.00018453,2]
[381378558,1756170636050,-1683.71,0.00018453,2]
[381378559,1756170636060,-400.0,0.00018453,2]
[381378560,1756170636069,-404.61,0.00018453,2]
[381378561,1756170636078,-400.0,0.00018453,2]
[381378562,1756170636088,-400.0,0.00018453,2]
[381378563,1756170636097,-400.0,0.00018453,2]
[381378564,1756170636108,-1837.95,0.00018453,2]
[381378565,1756170636117,-400.0,0.00018453,2]
[381378566,1756170636127,-400.0,0.00018453,2]
[381378567,1756170636136,-400.0,0.00018453,2]
[381378568,1756170636146,-400.0,0.00018453,2]
[381378569,1756170636155,-400.0,0.00018453,2]
[381378570,1756170636165,-400.0,0.00018453,2]
[381378571,1756170636174,-1649.43,0.00018453,2]
[381378572,1756170636187,-402.94845359,0.00018453,2]
[381378573,1756170636205,-400.0,0.00018453,2]
[381378574,1756170636215,-535.55,0.00018453,2]
[381378575,1756170636224,-400.0,0.00018453,2]
[381378576,1756170636234,-669.18,0.00018453,2]
[381378577,1756170636244,-500.0,0.00018453,2]
[381378578,1756170636254,-400.0,0.00018453,2]
[381378579,1756170636264,-400.0,0.00018453,2]
[381378580,1756170636274,-1313.81,0.00018453,2]
[381378581,1756170636285,-400.0,0.00018453,2]
[381378582,1756170636294,-1144.83,0.00018453,2]
[381378583,1756170636305,-672.85,0.00018453,2]
[381378584,1756170636315,-400.0,0.00018453,2]
[381378585,1756170636325,-400.0,0.00018453,2]
[381378586,1756170636334,-711.13,0.00018453,2]
[381378587,1756170636344,-400.0,0.00018453,2]
[381378588,1756170636354,-579.93,0.00018453,2]
[381378589,1756170636363,-400.0,0.00018453,2]
[381378590,1756170636373,-400.0,0.00018453,2]
[381378591,1756170636382,-400.0,0.00018453,2]
[381378592,1756170636391,-400.0,0.00018453,2]
[381378593,1756170636400,-648.31,0.00018453,2]
[381378594,1756170636410,-400.0,0.00018453,2]
[381378595,1756170636419,-400.0,0.00018453,2]
[381378596,1756170636430,-1188.14,0.00018453,2]
[381378597,1756170636439,-1086.61,0.00018453,2]
[381378598,1756170636448,-543.93,0.00018453,2]
[381378599,1756170636457,-400.0,0.00018453,2]
[381378600,1756170636469,-400.0,0.00018453,2]
[381378601,1756170636479,-1091.91,0.00018453,2]
[381378602,1756170636488,-400.0,0.00018453,2]
[381378603,1756170636498,-400.0,0.00018453,2]
[381378604,1756170636507,-400.0,0.00018453,2]
[381378605,1756170636517,-400.0,0.00018453,2]
[381378606,1756170636526,-1076.66,0.00018453,2]
[381378607,1756170636536,-400.0,0.00018453,2]
[381378608,1756170636545,-445.55,0.00018453,2]
[381378609,1756170636554,-400.0,0.00018453,2]
[381378610,1756170636563,-1328.62,0.00018453,2]
[381378611,1756170636573,-598.93,0.00018453,2]
[381378612,1756170636582,-677.48,0.00018453,2]
[381378613,1756170636592,-400.0,0.00018453,2]
[381378614,1756170636602,-400.0,0.00018453,2]
[381378615,1756170636615,-706.37,0.00018453,2]
[381378616,1756170636625,-400.0,0.00018453,2]